fUST/lending_fUST_20251126
["ID","MTS","AMOUNT","RATE_DAILY","PERIOD"]
[394903250,1764103846699,-7810.0,0.0001,2]
[394903251,1764103846708,-168.3888056,0.0001,2]
[394903252,1764103846724,-176.23,0.00010062,2]
[394903253,1764103846735,-176.23,0.00010072,2]
[394903254,1764103846744,-1605.31371176,0.00010116,2]
[394903255,1764103846754,-283.0,0.00010153,2]
[394903256,1764103846764,-1606.91902548,0.00010289,2]
[394903257,1764103846777,-711.47507071,0.0001029,2]
[394903258,1764103846791,-1000.0,0.00010367,2]
[394903259,1764103846801,-174.61919141,0.00010548,2]
[394903260,1764103846812,-3543.53637452,0.00010585,2]
[394903261,1764103846823,-4555.3087139,0.00010611,2]
[394903262,1764103846833,-151.0,0.00010685,2]
[394903263,1764103846843,-151.0,0.00010685,2]
[394903264,1764103846852,-227.108389,0.00010685,2]
[394903265,1764103846861,-227.108389,0.00010685,2]
[394903266,1764103846874,-227.108389,0.00010685,2]
[394903267,1764103846885,-227.108389,0.00010685,2]
[394903268,1764103846897,-227.108389,0.00010685,2]
[394903269,1764103846907,-227.108389,0.00010685,2]
[394903270,1764103846917,-227.108389,0.00010685,2]
[394903271,1764103846926,-227.108389,0.00010685,2]
[394903272,1764103846936,-227.108389,0.00010685,2]
[394903273,1764103846945,-227.108389,0.00010685,2]
[394903274,1764103846955,-227.108389,0.00010685,2]
[394903275,1764103846964,-227.108389,0.00010685,2]
[394903276,1764103846974,-227.108389,0.00010685,2]
[394903277,1764103846984,-227.108389,0.00010685,2]
[394903278,1764103846994,-227.108389,0.00010685,2]
[394903279,1764103847003,-227.108389,0.00010685,2]
[394903280,1764103847013,-227.108389,0.00010685,2]
[394903281,1764103847022,-227.108389,0.00010685,2]
[394903282,1764103847032,-227.108389,0.00010685,2]
[394903283,1764103847041,-227.108383,0.00010685,2]
[394903284,1764103847051,-191.963363,0.00010685,2]
[394903285,1764103847060,-191.963363,0.00010685,2]
[394903286,1764103847070,-191.963363,0.00010685,2]
[394903287,1764103847080,-191.963363,0.00010685,2]
[394903288,1764103847090,-191.963363,0.00010685,2]
[394903289,1764103847100,-191.963363,0.00010685,2]
[394903290,1764103847109,-191.963363,0.00010685,2]
[394903291,1764103847118,-191.963363,0.00010685,2]
[394903292,1764103847128,-191.963363,0.00010685,2]
[394903293,1764103847137,-337.668839,0.00010685,2]
[394903294,1764103847147,-191.963363,0.00010685,2]
[394903295,1764103847157,-337.668839,0.00010685,2]
[394903296,1764103847167,-191.963363,0.00010685,2]
[394903297,1764103847176,-337.668839,0.00010685,2]
[394903298,1764103847186,-191.963363,0.00010685,2]
[394903299,1764103847195,-337.668839,0.00010685,2]
[394903300,1764103847204,-191.963363,0.00010685,2]
[394903301,1764103847214,-337.668839,0.00010685,2]
[394903302,1764103847223,-191.963363,0.00010685,2]
[394903303,1764103847236,-337.668839,0.00010685,2]
[394903304,1764103847246,-191.963363,0.00010685,2]
[394903305,1764103847255,-337.668839,0.00010685,2]
[394903306,1764103847265,-191.963363,0.00010685,2]
[394903307,1764103847274,-337.668839,0.00010685,2]
[394903308,1764103847283,-191.963363,0.00010685,2]
[394903309,1764103847292,-337.668839,0.00010685,2]
[394903310,1764103847301,-191.963363,0.00010685,2]
[394903311,1764103847311,-337.668839,0.00010685,2]
[394903312,1764103847320,-191.963363,0.00010685,2]
[394903313,1764103847333,-337.668839,0.00010685,2]
[394903314,1764103847342,-191.96335489,0.00010685,2]
[394903315,1764103847352,-337.668839,0.00010685,2]
[394903316,1764103847361,-337.668839,0.00010685,2]
[394903317,1764103847371,-337.668839,0.00010685,2]
[394903318,1764103847380,-337.668839,0.00010685,2]
[394903319,1764103847389,-337.668839,0.00010685,2]
[394903320,1764103847398,-337.668839,0.00010685,2]
[394903321,1764103847407,-337.668839,0.00010685,2]
[394903322,1764103847417,-337.668839,0.00010685,2]
[394903323,1764103847426,-337.66883,0.00010685,2]
[394903324,1764103847436,-241.926694,0.00010685,2]
[394903325,1764103847446,-241.926694,0.00010685,2]
[394903326,1764103847455,-241.926694,0.00010685,2]
[394903327,1764103847464,-241.926694,0.00010685,2]
[394903328,1764103847473,-241.926694,0.00010685,2]
[394903329,1764103847484,-241.926694,0.00010685,2]
[394903330,1764103847493,-241.926694,0.00010685,2]
[394903331,1764103847503,-241.926694,0.00010685,2]
[394903332,1764103847512,-241.926694,0.00010685,2]
[394903333,1764103847521,-241.926694,0.00010685,2]
[394903334,1764103847531,-241.926694,0.00010685,2]
[394903335,1764103847540,-241.926694,0.00010685,2]
[394903336,1764103847550,-241.926694,0.00010685,2]
[394903337,1764103847559,-241.926694,0.00010685,2]
[394903338,1764103847569,-241.926694,0.00010685,2]
[394903339,1764103847578,-241.926694,0.00010685,2]
[394903340,1764103847815,-241.926694,0.00010685,2]
[394903341,1764103847824,-241.926694,0.00010685,2]
[394903342,1764103847834,-241.926694,0.00010685,2]
[394903343,1764103847843,-241.926696,0.00010685,2]
[394903344,1764103847852,-151.0,0.00010685,2]
[394903345,1764103847861,-151.0,0.00010685,2]
[394903346,1764103847870,-507.479222,0.00010685,2]
[394903347,1764103847879,-507.479222,0.00010685,2]
[394903348,1764103847889,-507.479222,0.00010685,2]
[394903349,1764103847898,-507.479222,0.00010685,2]
[394903350,1764103847907,-507.479222,0.00010685,2]
[394903351,1764103847916,-507.479222,0.00010685,2]
[394903352,1764103847927,-507.479222,0.00010685,2]
[394903353,1764103847937,-507.479222,0.00010685,2]
[394903354,1764103847948,-507.479222,0.00010685,2]
[394903355,1764103847958,-507.479222,0.00010685,2]
[394903356,1764103847967,-507.479222,0.00010685,2]
[394903357,1764103847976,-507.479222,0.00010685,2]
[394903358,1764103847985,-507.479222,0.00010685,2]
[394903359,1764103847994,-507.479222,0.00010685,2]
[394903360,1764103848003,-507.479222,0.00010685,2]
[394903361,1764103848012,-507.479222,0.00010685,2]
[394903362,1764103848022,-507.479222,0.00010685,2]
[394903363,1764103848032,-507.479222,0.00010685,2]
[394903364,1764103848041,-507.479222,0.00010685,2]
[394903365,1764103848052,-507.479222,0.00010685,2]
[394903366,1764103848062,-211.815378,0.00010685,2]
[394903367,1764103848071,-211.815378,0.00010685,2]
[394903368,1764103848081,-211.815378,0.00010685,2]
[394903369,1764103848090,-211.815378,0.00010685,2]
[394903370,1764103848099,-211.815378,0.00010685,2]
[394903371,1764103848109,-211.815378,0.00010685,2]
[394903372,1764103848118,-211.815378,0.00010685,2]
[394903373,1764103848127,-211.815378,0.00010685,2]
[394903374,1764103848136,-211.815378,0.00010685,2]
[394903375,1764103848145,-211.815378,0.00010685,2]
[394903376,1764103848154,-211.815378,0.00010685,2]
[394903377,1764103848164,-211.815378,0.00010685,2]
[394903378,1764103848173,-211.815378,0.00010685,2]
[394903379,1764103848181,-211.815378,0.00010685,2]
[394903380,1764103848191,-211.815378,0.00010685,2]
[394903381,1764103848200,-211.815378,0.00010685,2]
[394903382,1764103848209,-211.815378,0.00010685,2]
[394903383,1764103848218,-211.815378,0.00010685,2]
[394903384,1764103848228,-211.815378,0.00010685,2]
[394903385,1764103848237,-211.815385,0.00010685,2]
[394903386,1764103848247,-440.176,0.00010685,2]
[394903387,1764103848256,-440.176,0.00010685,2]
[394903388,1764103848266,-440.176,0.00010685,2]
[394903389,1764103848274,-440.176,0.00010685,2]
[394903390,1764103848283,-440.176,0.00010685,2]
[394903391,1764103848292,-440.176,0.00010685,2]
[394903392,1764103848301,-440.176,0.00010685,2]
[394903393,1764103848310,-440.176,0.00010685,2]
[394903394,1764103848319,-440.176,0.00010685,2]
[394903395,1764103848328,-440.176,0.00010685,2]
[394903396,1764103848337,-440.176,0.00010685,2]
[394903397,1764103848346,-440.176,0.00010685,2]
[394903398,1764103848355,-440.176,0.00010685,2]
[394903399,1764103848364,-440.176,0.00010685,2]
[394903400,1764103848374,-440.176,0.00010685,2]
[394903401,1764103848384,-440.176,0.00010685,2]
[394903402,1764103848393,-440.176,0.00010685,2]
[394903403,1764103848402,-440.176,0.00010685,2]
[394903404,1764103848410,-440.176,0.00010685,2]
[394903405,1764103848421,-440.176,0.00010685,2]
[394903406,1764103848430,-467.761359,0.00010685,2]
[394903407,1764103848440,-467.761359,0.00010685,2]
[394903408,1764103848451,-467.761359,0.00010685,2]
[394903409,1764103848460,-467.761359,0.00010685,2]
[394903410,1764103848470,-467.761359,0.00010685,2]
[394903411,1764103848481,-467.761359,0.00010685,2]
[394903412,1764103848490,-467.761359,0.00010685,2]
[394903413,1764103848500,-467.761359,0.00010685,2]
[394903414,1764103848509,-467.761359,0.00010685,2]
[394903415,1764103848518,-467.761359,0.00010685,2]
[394903416,1764103848527,-467.761359,0.00010685,2]
[394903417,1764103848536,-467.761359,0.00010685,2]
[394903418,1764103848545,-467.761359,0.00010685,2]
[394903419,1764103848555,-467.761359,0.00010685,2]
[394903420,1764103848564,-467.761359,0.00010685,2]
[394903421,1764103848573,-467.761359,0.00010685,2]
[394903422,1764103848582,-467.761359,0.00010685,2]
[394903423,1764103848592,-467.761359,0.00010685,2]
[394903424,1764103848601,-467.761359,0.00010685,2]
[394903425,1764103848610,-467.76136,0.00010685,2]
[394903426,1764103848620,-151.0,0.00010685,2]
[394903427,1764103848629,-151.0,0.00010685,2]
[394903428,1764103848638,-151.0,0.00010685,2]
[394903429,1764103848647,-151.0,0.00010685,2]
[394903430,1764103848656,-151.0,0.00010685,2]
[394903431,1764103848665,-151.0,0.00010685,2]
[394903432,1764103848674,-151.0,0.00010685,2]
[394903433,1764103848683,-151.0,0.00010685,2]
[394903434,1764103848692,-151.0,0.00010685,2]
[394903435,1764103848703,-151.0,0.00010685,2]
[394903436,1764103848713,-151.0,0.00010685,2]
[394903437,1764103848724,-151.0,0.00010685,2]
[394903438,1764103848733,-53.88064655,0.00010685,2]
[394903759,1764105032616,-566.43546982,6.892e-05,2]
[394903761,1764105032625,-209.0,6.892e-05,2]
[394903763,1764105032635,-226.88021743,6.962e-05,2]
[394903766,1764105032647,-339.55525239,6.962e-05,2]
[394903768,1764105032656,-229.64275548,7.068e-05,2]
[394903770,1764105032665,-12121.64526497,7.108e-05,2]
[394903796,1764105045275,-787.31456382,6.966e-05,2]
[394903797,1764105045284,-787.31456382,7.036e-05,2]
[394903798,1764105045294,-287.31456382,7.107e-05,2]
[394903799,1764105045304,-500.0,7.107e-05,2]
[394903800,1764105045313,-2.38871443,7.108e-05,2]
[394903801,1764105045323,-353.43546982,7.699e-05,2]
[394903802,1764105045332,-160.0,7.708e-05,2]
[394903803,1764105045342,-300.0,8.013e-05,2]
[394903804,1764105045353,-1200.0,8.013e-05,2]
[394903805,1764105045362,-300.0,8.015e-05,2]
[394903806,1764105045376,-300.0,8.015e-05,2]
[394903807,1764105045385,-300.0,8.015e-05,2]
[394903808,1764105045394,-300.0,8.015e-05,2]
[394903809,1764105045404,-300.0,8.015e-05,2]
[394903810,1764105045414,-300.0,8.015e-05,2]
[394903811,1764105045423,-300.0,8.015e-05,2]
[394903812,1764105045433,-300.0,8.015e-05,2]
[394903813,1764105045444,-300.0,8.015e-05,2]
[394903814,1764105045453,-300.0,8.015e-05,2]
[394903815,1764105045686,-300.0,8.015e-05,2]
[394903816,1764105045697,-300.0,8.015e-05,2]
[394903817,1764105045706,-300.0,8.015e-05,2]
[394903818,1764105045715,-300.0,8.015e-05,2]
[394903819,1764105045725,-300.0,8.015e-05,2]
[394903820,1764105045734,-250.0,8.769e-05,2]
[394903821,1764105045744,-150.0,8.821e-05,2]
[394903822,1764105045753,-582.022,8.821e-05,2]
[394903823,1764105045762,-270.97845147,9.068e-05,2]
[394903824,1764105045772,-168.3888056,0.00010579,2]
[394903825,1764105045782,-32344.19614271,0.00010585,2]
[394903843,1764105090128,152.061405,0.000196,30]
[394903844,1764105668378,150.0,0.00018021,30]
[394903845,1764105668771,150.0,0.00019659,30]
[394903846,1764105751549,152.061405,0.0002,30]
[394904004,1764106209258,2000.0,0.0002,30]
[394904045,1764106232499,-509.0,6.297e-05,2]
[394904046,1764106232509,-509.0,6.361e-05,2]
[394904047,1764106232519,-206.0,6.425e-05,2]
[394904048,1764106232528,-251.97033135,6.458e-05,2]
[394904049,1764106232538,-300.0,7.097e-05,2]
[394904050,1764106232547,-1200.0,7.097e-05,2]
[394904051,1764106232556,-500.0,7.098e-05,2]
[394904052,1764106232566,-500.0,7.098e-05,2]
[394904053,1764106232575,-500.0,7.098e-05,2]
[394904054,1764106232584,-500.0,7.098e-05,2]
[394904055,1764106232594,-500.0,7.098e-05,2]
[394904056,1764106232603,-500.0,7.098e-05,2]
[394904057,1764106232612,-500.0,7.098e-05,2]
[394904058,1764106232621,-500.0,7.098e-05,2]
[394904059,1764106232633,-500.0,7.098e-05,2]
[394904060,1764106232642,-500.0,7.098e-05,2]
[394904061,1764106232651,-500.0,7.098e-05,2]
[394904062,1764106232660,-500.0,7.098e-05,2]
[394904063,1764106232670,-500.0,7.098e-05,2]
[394904064,1764106232680,-500.0,7.098e-05,2]
[394904065,1764106232690,-500.0,7.098e-05,2]
[394904066,1764106232699,-500.0,7.098e-05,2]
[394904067,1764106232708,-500.0,7.098e-05,2]
[394904068,1764106232718,-500.0,7.098e-05,2]
[394904069,1764106232727,-500.0,7.098e-05,2]
[394904070,1764106232737,-500.0,7.098e-05,2]
[394904071,1764106232746,-500.0,7.098e-05,2]
[394904072,1764106232760,-273.84895978,7.098e-05,2]
[394904073,1764106232770,-624.14445038,7.098e-05,2]
[394904074,1764106232779,-500.0,7.098e-05,2]
[394904075,1764106232789,-500.0,7.098e-05,2]
[394904076,1764106232799,-500.0,7.098e-05,2]
[394904077,1764106232808,-145.66409739,7.098e-05,2]
[394904078,1764106232820,-354.33590261,7.098e-05,2]
[394904079,1764106232829,-353.43546982,7.207e-05,2]
[394904080,1764106232840,-300.0,7.249e-05,2]
[394904081,1764106232850,-300.0,7.249e-05,2]
[394904082,1764106232859,-300.0,7.249e-05,2]
[394904083,1764106232869,-300.0,7.249e-05,2]
[394904084,1764106232878,-300.0,7.249e-05,2]
[394904085,1764106232891,-300.0,7.249e-05,2]
[394904086,1764106232900,-300.0,7.249e-05,2]
[394904087,1764106232909,-300.0,7.249e-05,2]
[394904088,1764106232919,-300.0,7.249e-05,2]
[394904089,1764106232927,-300.0,7.249e-05,2]
[394904090,1764106232937,-300.0,7.249e-05,2]
[394904091,1764106232946,-300.0,7.249e-05,2]
[394904092,1764106232955,-300.0,7.249e-05,2]
[394904093,1764106232965,-300.0,7.249e-05,2]
[394904094,1764106232974,-300.0,7.249e-05,2]
[394904095,1764106232983,-600.0,7.249e-05,2]
[394904096,1764106232992,-500.0,7.249e-05,2]
[394904097,1764106233002,-151.0,7.249e-05,2]
[394904098,1764106233012,-500.0,7.249e-05,2]
[394904099,1764106233022,-500.0,7.249e-05,2]
[394904100,1764106233032,-500.0,7.249e-05,2]
[394904101,1764106233041,-500.0,7.249e-05,2]
[394904102,1764106233050,-500.0,7.249e-05,2]
[394904103,1764106233060,-151.0,7.249e-05,2]
[394904104,1764106233069,-151.0,7.249e-05,2]
[394904105,1764106233078,-151.0,7.249e-05,2]
[394904106,1764106233088,-151.0,7.249e-05,2]
[394904107,1764106233097,-151.0,7.249e-05,2]
[394904108,1764106233107,-151.0,7.249e-05,2]
[394904109,1764106233117,-151.0,7.249e-05,2]
[394904110,1764106233126,-500.0,7.249e-05,2]
[394904111,1764106233136,-500.0,7.385e-05,2]
[394904112,1764106233146,-500.0,7.385e-05,2]
[394904113,1764106233155,-392.77419393,7.385e-05,2]
[394904114,1764106233164,-500.0,7.385e-05,2]
[394904115,1764106233173,-500.0,7.385e-05,2]
[394904116,1764106233183,-500.0,7.385e-05,2]
[394904117,1764106233202,-500.0,7.385e-05,2]
[394904118,1764106233214,-500.0,7.386e-05,2]
[394904119,1764106233223,-151.0,7.386e-05,2]
[394904120,1764106233233,-500.0,7.386e-05,2]
[394904121,1764106233243,-500.0,7.386e-05,2]
[394904122,1764106233253,-500.0,7.386e-05,2]
[394904123,1764106233263,-500.0,7.386e-05,2]
[394904124,1764106233272,-500.0,7.386e-05,2]
[394904125,1764106233283,-151.0,7.386e-05,2]
[394904126,1764106233292,-151.0,7.386e-05,2]
[394904127,1764106233302,-151.0,7.386e-05,2]
[394904128,1764106233311,-151.0,7.386e-05,2]
[394904129,1764106233321,-151.0,7.386e-05,2]
[394904130,1764106233330,-195.66012895,7.386e-05,2]
[394904131,1764106233340,-151.0,7.386e-05,2]
[394904132,1764106233350,-500.0,7.523e-05,2]
[394904133,1764106233359,-151.0,7.523e-05,2]
[394904134,1764106233369,-500.0,7.523e-05,2]
[394904135,1764106233380,-349.96923179,7.523e-05,2]
[394904136,1764106233394,-500.0,7.523e-05,2]
[394904137,1764106233403,-507.31554124,7.523e-05,2]
[394904138,1764106233413,-500.0,7.523e-05,2]
[394904139,1764106233423,-260.99932339,7.523e-05,2]
[394904140,1764106233433,-198.0,7.523e-05,2]
[394904141,1764106233442,-198.0,7.523e-05,2]
[394904142,1764106233452,-198.0,7.523e-05,2]
[394904143,1764106233462,-198.0,7.523e-05,2]
[394904144,1764106233472,-151.0,7.523e-05,2]
[394904145,1764106233483,-500.0,7.66e-05,2]
[394904146,1764106233493,-151.0,7.66e-05,2]
[394904147,1764106233503,-500.0,7.66e-05,2]
[394904148,1764106233514,-381.89822719,7.66e-05,2]
[394904149,1764106233524,-151.0,7.66e-05,2]
[394904150,1764106233534,-500.0,7.797e-05,2]
[394904151,1764106233544,-151.0,7.797e-05,2]
[394904152,1764106233554,-500.0,7.797e-05,2]
[394904153,1764106233565,-420.0,7.807e-05,2]
[394904154,1764106233575,-934.0,7.807e-05,2]
[394904155,1764106233586,-151.0,7.814e-05,2]
[394904156,1764106233596,-151.0,7.814e-05,2]
[394904157,1764106233606,-151.0,7.814e-05,2]
[394904158,1764106233616,-151.0,7.814e-05,2]
[394904159,1764106233627,-500.0,7.814e-05,2]
[394904160,1764106233640,-151.0,7.814e-05,2]
[394904161,1764106233651,-500.0,7.814e-05,2]
[394904162,1764106233661,-151.0,7.814e-05,2]
[394904163,1764106233671,-500.0,7.814e-05,2]
[394904164,1764106233680,-151.0,7.814e-05,2]
[394904165,1764106233690,-530.0,7.934e-05,2]
[394904166,1764106233700,-245.0,7.934e-05,2]
[394904167,1764106233709,-500.0,7.934e-05,2]
[394904168,1764106233719,-151.0,7.951e-05,2]
[394904169,1764106233728,-151.0,7.951e-05,2]
[394904170,1764106233737,-151.0,7.951e-05,2]
[394904171,1764106233747,-151.0,7.951e-05,2]
[394904172,1764106233757,-500.0,7.951e-05,2]
[394904173,1764106233770,-151.0,7.951e-05,2]
[394904174,1764106233780,-500.0,7.951e-05,2]
[394904175,1764106233789,-151.0,7.951e-05,2]
[394904176,1764106233799,-500.0,7.951e-05,2]
[394904177,1764106233810,-151.0,7.951e-05,2]
[394904178,1764106233823,-720.0,7.973e-05,2]
[394904179,1764106233835,-500.0,8.071e-05,2]
[394904180,1764106233845,-500.0,8.071e-05,2]
[394904181,1764106233855,-151.0,8.088e-05,2]
[394904182,1764106233864,-151.0,8.088e-05,2]
[394904183,1764106233874,-151.0,8.088e-05,2]
[394904184,1764106233886,-151.0,8.088e-05,2]
[394904185,1764106233898,-500.0,8.088e-05,2]
[394904186,1764106233908,-151.0,8.088e-05,2]
[394904187,1764106233917,-500.0,8.088e-05,2]
[394904188,1764106233927,-151.0,8.088e-05,2]
[394904189,1764106233937,-500.0,8.088e-05,2]
[394904190,1764106233947,-500.0,8.208e-05,2]
[394904191,1764106233956,-464.56494394,8.219e-05,2]
[394904192,1764106234164,-151.0,8.225e-05,2]
[394904193,1764106234218,-151.0,8.225e-05,2]
[394904194,1764106234230,-151.0,8.225e-05,2]
[394904195,1764106234240,-151.0,8.225e-05,2]
[394904196,1764106234251,-151.0,8.225e-05,2]
[394904197,1764106234260,-500.0,8.225e-05,2]
[394904198,1764106234270,-500.0,8.225e-05,2]
[394904199,1764106234279,-954.1149522,8.336e-05,2]
[394904200,1764106234288,-500.0,8.345e-05,2]
[394904201,1764106234298,-151.0,8.362e-05,2]
[394904202,1764106234307,-151.0,8.362e-05,2]
[394904203,1764106234317,-151.0,8.362e-05,2]
[394904204,1764106234326,-151.0,8.362e-05,2]
[394904205,1764106234336,-245.0,8.362e-05,2]
[394904206,1764106234345,-297.32499099,8.458e-05,2]
[394904207,1764106234355,-500.0,8.482e-05,2]
[394904208,1764106234364,-250.0,8.49e-05,2]
[394904209,1764106234374,-245.0,8.499e-05,2]
[394904210,1764106234384,-245.0,8.499e-05,2]
[394904211,1764106234394,-245.0,8.499e-05,2]
[394904212,1764106234403,-245.0,8.499e-05,2]
[394904213,1764106234413,-167.0,8.588e-05,2]
[394904214,1764106234422,-500.0,8.619e-05,2]
[394904215,1764106234433,-500.0,8.756e-05,2]
[394904216,1764106234443,-864.0,8.771e-05,2]
[394904217,1764106234452,-500.0,8.893e-05,2]
[394904218,1764106234462,-500.0,9.03e-05,2]
[394904219,1764106234471,-500.0,9.167e-05,2]
[394904220,1764106234481,-263.0493311,9.305e-05,2]
[394904221,1764106234490,-1220.7101424,9.305e-05,2]
[394904222,1764106234500,-630.0,9.44e-05,2]
[394904223,1764106234509,-2152.0,9.44e-05,2]
[394904224,1764106234519,-990.0,9.44e-05,2]
[394904225,1764106234528,-414.0,9.44e-05,2]
[394904226,1764106234537,-151.0,9.44e-05,2]
[394904227,1764106234547,-151.0,9.44e-05,2]
[394904228,1764106234556,-152.90161,9.589e-05,2]
[394904229,1764106234565,-1000.0,9.648e-05,2]
[394904230,1764106234574,-500.0,9.653e-05,2]
[394904231,1764106234583,-521.30774407,9.653e-05,2]
[394904232,1764106234593,-500.0,9.653e-05,2]
[394904233,1764106234603,-500.0,9.653e-05,2]
[394904234,1764106234612,-500.0,9.653e-05,2]
[394904235,1764106234622,-481.50833547,9.653e-05,2]
[394904236,1764106234631,-151.0,9.653e-05,2]
[394904237,1764106234642,-500.0,9.653e-05,2]
[394904238,1764106234651,-151.0,9.79e-05,2]
[394904239,1764106234661,-594.0,9.79e-05,2]
[394904240,1764106234671,-198.0,9.927e-05,2]
[394904241,1764106234680,-168.3888056,0.0001,2]
[394904242,1764106234690,-228.00159243,0.000102,2]
[394904243,1764106234699,-1041.55712189,0.000102,2]
[394904244,1764106234709,-224.65578132,0.000102,2]
[394904245,1764106234719,-1000.0,0.000102,2]
[394904246,1764106234728,-151.0,0.00010201,2]
[394904247,1764106234737,-278.239483,0.00010201,2]
[394904248,1764106234747,-310.25643503,0.00010241,2]
[394904249,1764106234761,-342.67965063,0.00010458,2]
[394904250,1764106234771,-151.0,0.00010485,2]
[394904251,1764106234780,-174.61919141,0.00010548,2]
[394904252,1764106234790,-1000.0,0.00010613,2]
[394904253,1764106234802,-244.0,0.00010613,2]
[394904254,1764106234811,-500.0,0.00010684,2]
[394904255,1764106234821,-151.0,0.00010684,2]
[394904256,1764106234831,-151.0,0.00010685,2]
[394904257,1764106234840,-151.0,0.00010685,2]
[394904258,1764106234850,-179.87924,0.00010685,2]
[394904259,1764106234859,-151.0,0.00010685,2]
[394904260,1764106234868,-151.0,0.00010685,2]
[394904261,1764106234878,-151.0,0.00010685,2]
[394904262,1764106234890,-151.0,0.00010685,2]
[394904263,1764106234899,-151.0,0.00010685,2]
[394904264,1764106234908,-151.0,0.00010685,2]
[394904265,1764106234918,-151.0,0.00010685,2]
[394904266,1764106234927,-151.0,0.00010685,2]
[394904267,1764106234937,-151.0,0.00010685,2]
[394904268,1764106234946,-151.0,0.00010685,2]
[394904269,1764106234956,-151.0,0.00010685,2]
[394904270,1764106234965,-151.0,0.00010685,2]
[394904271,1764106234975,-151.0,0.00010685,2]
[394904272,1764106234984,-151.0,0.00010685,2]
[394904273,1764106234994,-151.0,0.00010685,2]
[394904274,1764106235003,-151.0,0.00010685,2]
[394904275,1764106235012,-269.652608,0.00010685,2]
[394904276,1764106235022,-478.816254,0.00010685,2]
[394904277,1764106235031,-478.816254,0.00010685,2]
[394904278,1764106235040,-478.816254,0.00010685,2]
[394904279,1764106235049,-478.816254,0.00010685,2]
[394904280,1764106235058,-478.816254,0.00010685,2]
[394904281,1764106235068,-478.816254,0.00010685,2]
[394904282,1764106235078,-478.816254,0.00010685,2]
[394904283,1764106235098,-478.816254,0.00010685,2]
[394904284,1764106235108,-151.0,0.00010685,2]
[394904285,1764106235118,-151.0,0.00010685,2]
[394904286,1764106235128,-151.0,0.00010685,2]
[394904287,1764106235140,-151.0,0.00010685,2]
[394904288,1764106235150,-151.0,0.00010685,2]
[394904289,1764106235160,-151.0,0.00010685,2]
[394904290,1764106235170,-151.0,0.00010685,2]
[394904291,1764106235180,-151.0,0.00010685,2]
[394904292,1764106235190,-151.0,0.00010685,2]
[394904293,1764106235200,-151.0,0.00010685,2]
[394904294,1764106235210,-151.0,0.00010685,2]
[394904295,1764106235220,-151.168825,0.00010685,2]
[394904296,1764106235230,-337.976099,0.00010685,2]
[394904297,1764106235240,-337.976099,0.00010685,2]
[394904298,1764106235250,-337.976099,0.00010685,2]
[394904299,1764106235261,-337.976099,0.00010685,2]
[394904300,1764106235270,-337.976099,0.00010685,2]
[394904301,1764106235280,-337.976099,0.00010685,2]
[394904302,1764106235290,-337.976099,0.00010685,2]
[394904303,1764106235301,-337.976099,0.00010685,2]
[394904304,1764106235311,-337.976099,0.00010685,2]
[394904305,1764106235321,-337.976099,0.00010685,2]
[394904306,1764106235331,-337.976099,0.00010685,2]
[394904307,1764106235342,-151.0,0.00010685,2]
[394904308,1764106235352,-337.976099,0.00010685,2]
[394904309,1764106235361,-151.0,0.00010685,2]
[394904310,1764106235371,-151.0,0.00010685,2]
[394904311,1764106235381,-151.0,0.00010685,2]
[394904312,1764106235392,-151.0,0.00010685,2]
[394904313,1764106235401,-151.0,0.00010685,2]
[394904314,1764106235411,-151.0,0.00010685,2]